lending/lending_fUSD_20251124
["ID","MTS","AMOUNT","RATE_DAILY","PERIOD"]
[394812909,1763976641814,-151.0,0.00038668,8]
[394812910,1763976641823,-580.64,0.00038668,8]
[394812911,1763976641832,-500.0,0.00038668,8]
[394812912,1763976641842,-500.0,0.00038668,8]
[394812913,1763976641851,-500.0,0.00038668,8]
[394812914,1763976641860,-381.75637922,0.00038668,8]
[394812915,1763976641871,-500.0,0.00038668,8]
[394812916,1763976641881,-500.0,0.00038668,8]
[394812917,1763976641891,-500.0,0.00038668,8]
[394812918,1763976641901,-500.0,0.00038668,8]
[394812919,1763976641910,-500.0,0.00038668,8]
[394812920,1763976641919,-500.0,0.00038668,8]
[394812921,1763976641929,-505.32,0.00038668,8]
[394812922,1763976641940,-603.59,0.00038668,8]
[394812923,1763976641952,-660.579028,0.00038668,8]
[394812924,1763976641962,-500.0,0.00038668,8]
[394812925,1763976641972,-500.0,0.00038668,8]
[394812926,1763976641982,-1931.958951,0.00038668,8]
[394812927,1763976641991,-500.0,0.00038668,8]
[394812928,1763976642003,-500.0,0.00038668,8]
[394812929,1763976642012,-500.0,0.00038668,8]
[394812930,1763976642022,-606.98,0.00038668,8]
[394812931,1763976642031,-500.0,0.00038668,8]
[394812932,1763976642040,-211.11659013,0.00038668,8]
[394812933,1763976642050,-500.0,0.00038668,8]
[394812934,1763976642060,-500.0,0.00038668,8]
[394812935,1763976642070,-500.0,0.00038668,8]
[394812936,1763976642079,-500.0,0.00038668,8]
[394812937,1763976642088,-500.0,0.00038668,8]
[394812938,1763976642097,-503.88,0.00038668,8]
[394812939,1763976642107,-500.0,0.00038668,8]
[394812940,1763976642116,-1000.0,0.00038668,90]
[394812941,1763976642125,-500.0,0.00038668,8]
[394812942,1763976642134,-500.0,0.00038668,8]
[394812943,1763976642144,-500.0,0.00038668,8]
[394812944,1763976642154,-500.0,0.00038668,8]
[394812945,1763976642163,-465.5901912,0.00038668,8]
[394812946,1763976642173,-500.0,0.00038668,8]
[394812947,1763976642182,-500.0,0.00038668,8]
[394812948,1763976642191,-500.0,0.00038668,8]
[394812949,1763976642201,-550.48296116,0.00038668,8]
[394812950,1763976642211,-500.0,0.00038668,8]
[394812951,1763976642221,-500.0,0.00038668,8]
[394812952,1763976642231,-500.0,0.00038668,8]
[394812953,1763976642240,-500.0,0.00038668,8]
[394812954,1763976642250,-601.77,0.00038668,8]
[394812955,1763976642259,-500.0,0.00038668,8]
[394812956,1763976642270,-500.0,0.00038668,8]
[394812957,1763976642280,-507.03314613,0.00038668,8]
[394812958,1763976642289,-422.41670267,0.00038668,8]
[394812959,1763976642299,-500.0,0.00038668,8]
[394812960,1763976642309,-500.0,0.00038668,8]
[394812961,1763976642319,-500.0,0.00038668,8]
[394812962,1763976642329,-500.0,0.00038668,8]
[394812963,1763976642339,-500.0,0.00038668,8]
[394812964,1763976642348,-500.0,0.00038668,8]
[394812965,1763976642358,-500.0,0.00038668,8]
[394812966,1763976642367,-529.8,0.00038668,8]
[394812967,1763976642376,-500.0,0.00038668,8]
[394812968,1763976642386,-500.0,0.00038668,8]
[394812969,1763976642395,-500.0,0.00038668,8]
[394812970,1763976642405,-500.0,0.00038668,8]
[394812971,1763976642414,-629.09386974,0.00038668,8]
[394812972,1763976642424,-500.0,0.00038668,8]
[394812973,1763976642433,-500.0,0.00038668,8]
[394812974,1763976642443,-500.0,0.00038668,8]
[394812975,1763976642453,-500.0,0.00038668,8]
[394812976,1763976642467,-500.0,0.00038668,8]
[394812977,1763976642492,-500.0,0.00038668,8]
[394812978,1763976642519,-438.72,0.00038668,2]
[394812979,1763976642548,-622.7678256,0.00038668,8]
[394812980,1763976642577,-1060.06,0.00038668,8]
[394812981,1763976642607,-500.0,0.00038668,8]
[394812982,1763976642637,-500.0,0.00038668,8]
[394812983,1763976642669,-577.24,0.00038668,8]
[394812984,1763976642682,-505.66360664,0.00038668,8]
[394812988,1763976642866,-500.0,0.00038668,8]
[394812989,1763976642876,-500.0,0.00038668,8]
[394812990,1763976642885,-500.0,0.00038668,8]
[394812991,1763976642893,-500.0,0.00038668,8]
[394812992,1763976642903,-509.62822341,0.00038668,8]
[394812993,1763976642912,-500.0,0.00038668,8]
[394812994,1763976642921,-687.84,0.00038668,8]
[394812995,1763976642930,-500.0,0.00038668,8]
[394812996,1763976642941,-500.0,0.00038668,8]
[394812997,1763976642952,-500.0,0.00038668,8]
[394812998,1763976642963,-500.0,0.00038668,8]
[394812999,1763976642972,-500.0,0.00038668,8]
[394813000,1763976642982,-275.34186218,0.00038668,8]
[394813001,1763976642991,-500.0,0.00038668,8]
[394813002,1763976643000,-500.0,0.00038668,8]
[394813003,1763976643010,-500.0,0.00038668,8]
[394813004,1763976643020,-995.31,0.00038668,8]
[394813005,1763976643029,-500.0,0.00038668,8]
[394813006,1763976643038,-500.0,0.00038668,8]
[394813007,1763976643047,-500.0,0.00038668,8]
[394813008,1763976643056,-221.91724997,0.00038668,8]
[394813009,1763976643065,-1551.68,0.00038668,8]
[394813010,1763976643074,-500.0,0.00038668,8]
[394813011,1763976643084,-500.0,0.00038668,8]
[394813012,1763976643093,-500.0,0.00038668,8]
[394813013,1763976643102,-500.0,0.00038668,8]
[394813014,1763976643111,-500.0,0.00038668,8]
[394813015,1763976643121,-500.0,0.00038668,8]
[394813016,1763976643130,-500.0,0.00038668,8]
[394813017,1763976643140,-500.0,0.00038668,8]
[394813018,1763976643149,-500.0,0.00038668,8]
[394813019,1763976643159,-500.0,0.00038668,2]
[394813020,1763976643170,-500.0,0.00038668,8]
[394813021,1763976643180,-500.0,0.00038668,8]
[394813022,1763976643190,-500.0,0.00038668,8]
[394813023,1763976643199,-537.98399219,0.00038668,8]
[394813024,1763976643211,-614.45,0.00038668,8]
[394813025,1763976643220,-500.0,0.00038668,8]
[394813026,1763976643229,-500.0,0.00038668,120]
[394813027,1763976643239,-500.0,0.00038668,8]
[394813028,1763976643248,-500.0,0.00038668,8]
[394813030,1763976643257,-500.0,0.00038668,8]
[394813031,1763976643267,-500.0,0.00038668,8]
[394813032,1763976643276,-500.0,0.00038668,8]
[394813033,1763976643286,-506.86757343,0.00038668,8]
[394813034,1763976643295,-221.84,0.00038668,8]
[394813035,1763976643305,-500.0,0.00038668,8]
[394813037,1763976643315,-500.0,0.00038668,8]
[394813039,1763976643324,-500.0,0.00038668,8]
[394813040,1763976643333,-500.0,0.00038668,8]
[394813041,1763976643343,-500.0,0.00038668,8]
[394813042,1763976643352,-500.0,0.00038668,8]
[394813044,1763976643362,-564.1,0.00038668,8]
[394813045,1763976643372,-500.0,0.00038668,8]
[394813046,1763976643381,-506.99879191,0.00038668,8]
[394813047,1763976643391,-163.26,0.00038668,8]
[394813048,1763976643400,-500.0,0.00038668,8]
[394813049,1763976643410,-500.0,0.00038668,8]
[394813050,1763976643419,-500.0,0.00038668,8]
[394813051,1763976643429,-508.07814751,0.00038668,8]
[394813052,1763976643439,-500.0,0.00038668,8]
[394813053,1763976643447,-500.0,0.00038668,8]
[394813054,1763976643458,-506.97340014,0.00038668,8]
[394813055,1763976643468,-500.0,0.00038668,8]
[394813056,1763976643477,-500.0,0.00038668,8]
[394813057,1763976643486,-500.0,0.00038668,8]
[394813058,1763976643495,-500.0,0.00038668,8]
[394813059,1763976643504,-500.0,0.00038668,8]
[394813060,1763976643513,-500.0,0.00038668,8]
[394813061,1763976643523,-500.0,0.00038668,8]
[394813062,1763976643532,-500.0,0.00038668,8]
[394813063,1763976643541,-548.59,0.00038668,8]
[394813064,1763976643551,-500.0,0.00038668,8]
[394813065,1763976643561,-500.0,0.00038668,8]
[394813066,1763976643571,-386.61232474,0.00038668,8]
[394813067,1763976643580,-152.94806323,0.00038668,8]
[394813068,1763976643589,-500.0,0.00038668,8]
[394813069,1763976643599,-500.0,0.00038668,8]
[394813070,1763976643608,-500.0,0.00038668,8]
[394813071,1763976643618,-500.0,0.00038668,2]
[394813072,1763976643628,-500.0,0.00038668,8]
[394813073,1763976643638,-500.0,0.00038668,8]
[394813074,1763976643646,-500.0,0.00038668,8]
[394813075,1763976643655,-500.0,0.00038668,8]
[394813076,1763976643665,-500.0,0.00038668,8]
[394813077,1763976643674,-500.0,0.00038668,8]
[394813078,1763976643683,-500.0,0.00038668,8]
[394813079,1763976643692,-500.0,0.00038668,8]
[394813080,1763976643701,-557.8539518,0.00038668,8]
[394813081,1763976643712,-500.0,0.00038668,8]
[394813082,1763976643722,-500.0,0.00038668,8]
[394813083,1763976643731,-500.0,0.00038668,8]
[394813084,1763976643741,-504.83547106,0.00038668,8]
[394813085,1763976643750,-500.0,0.00038668,8]
[394813086,1763976643759,-500.0,0.00038668,8]
[394813087,1763976643769,-500.0,0.00038668,15]
[394813088,1763976643779,-201.89361919,0.00038668,15]
[394813089,1763976643788,-355.88938698,0.00038668,15]
[394813090,1763976643798,-500.0,0.00038668,15]
[394813091,1763976643807,-598.29947064,0.00038668,15]
[394813092,1763976643816,-500.0,0.00038668,15]
[394813093,1763976643825,-500.0,0.00038668,15]
[394813094,1763976643835,-500.0,0.00038668,15]
[394813095,1763976643844,-500.0,0.00038668,15]
[394813096,1763976643853,-229.55659831,0.00038668,15]
[394813097,1763976643863,-500.0,0.00038668,15]
[394813098,1763976643872,-500.0,0.00038668,15]
[394813099,1763976643882,-500.0,0.00038668,15]
[394813100,1763976643893,-500.0,0.00038668,15]
[394813101,1763976643903,-500.0,0.00038668,15]
[394813102,1763976643912,-500.0,0.00038668,15]
[394813103,1763976643921,-500.0,0.00038668,15]
[394813104,1763976643931,-168.04371873,0.00038669,12]
[394813105,1763976643942,-150.0,0.00038675,7]
[394813106,1763976643952,-934.04,0.00038687,120]
[394813107,1763976643963,-225.68647856,0.00038706,15]
[394813108,1763976643972,-150.0,0.00038708,7]
[394813109,1763976643982,-934.04,0.00038717,120]
[394813110,1763976643992,-500.0,0.0003873,15]
[394813111,1763976644001,-500.0,0.0003873,15]
[394813112,1763976644010,-500.0,0.0003873,15]
[394813113,1763976644019,-500.0,0.0003873,15]
[394813114,1763976644028,-500.0,0.0003873,15]
[394813115,1763976644037,-500.0,0.0003873,15]
[394813116,1763976644046,-500.0,0.0003873,15]
[394813117,1763976644056,-500.0,0.0003873,15]
[394813118,1763976644066,-500.0,0.0003873,15]
[394813119,1763976644076,-500.0,0.0003873,15]
[394813120,1763976644086,-500.0,0.0003873,15]
[394813121,1763976644095,-500.0,0.0003873,15]
[394813122,1763976644104,-500.0,0.0003873,15]
[394813123,1763976644114,-500.0,0.0003873,15]
[394813124,1763976644124,-500.0,0.0003873,15]
[394813125,1763976644134,-500.0,0.0003873,15]
[394813126,1763976644143,-500.0,0.0003873,15]
[394813127,1763976644154,-500.0,0.0003873,15]
[394813128,1763976644164,-500.0,0.0003873,15]
[394813129,1763976644174,-500.0,0.0003873,15]
[394813130,1763976644187,-500.0,0.0003873,15]
[394813131,1763976644197,-500.0,0.0003873,15]
[394813132,1763976644209,-1000.0,0.0003873,3]
[394813133,1763976644219,-200.0,0.00038731,15]
[394813134,1763976644229,-200.0,0.00038731,15]
[394813135,1763976644239,-200.0,0.00038731,15]
[394813136,1763976644250,-200.0,0.00038731,15]
[394813137,1763976644259,-150.0,0.00038731,15]
[394813138,1763976644269,-150.0,0.00038731,15]
[394813139,1763976644278,-150.0,0.00038731,15]
[394813140,1763976644289,-150.0,0.00038731,15]
[394813141,1763976644298,-150.0,0.00038731,2]
[394813142,1763976644308,-150.0,0.00038731,15]
[394813143,1763976644317,-150.0,0.00038731,15]
[394813144,1763976644326,-150.0,0.00038731,15]
[394813145,1763976644336,-1000.0,0.00038743,2]
[394813147,1763976644346,-150.0,0.00038744,7]
[394813148,1763976644356,-186.57498517,0.00038744,2]
[394813149,1763976644366,-934.04,0.0003875,120]
[394813150,1763976644376,-400.0,0.00038768,8]
[394813151,1763976644386,-591.0888069,0.00038768,8]
[394813152,1763976644396,-500.0,0.00038768,8]
[394813153,1763976644405,-500.0,0.00038768,8]
[394813154,1763976644415,-500.0,0.00038768,8]
[394813155,1763976644425,-822.85,0.00038768,30]
[394813156,1763976644434,-500.06,0.00038768,8]
[394813157,1763976644444,-500.0,0.00038768,8]
[394813158,1763976644454,-500.0,0.00038768,8]
[394813159,1763976644465,-479.66,0.00038768,8]
[394813160,1763976644475,-500.0,0.00038768,8]
[394813161,1763976644484,-500.0,0.00038768,8]
[394813162,1763976644493,-500.0,0.00038768,8]
[394813163,1763976644504,-491.83,0.00038768,8]
[394813164,1763976644513,-500.0,0.00038769,8]
[394813165,1763976644523,-500.0,0.00038769,8]
[394813166,1763976644532,-500.0,0.00038769,8]
[394813167,1763976644542,-500.0,0.00038769,8]
[394813168,1763976644552,-500.0,0.00038769,8]
[394813169,1763976644561,-500.0,0.00038769,8]
[394813170,1763976644571,-503.14774146,0.00038773,5]
[394813171,1763976644581,-500.0,0.00038773,5]
[394813172,1763976644590,-934.04,0.00038784,120]
[394813173,1763976644599,-514.3,0.0003879,2]
[394813174,1763976644608,-6297.0,0.000388,30]
[394813175,1763976644617,-364.18485085,0.0003882,2]
[394813176,1763976644626,-934.04,0.0003882,120]
[394813177,1763976644636,-150.0,0.00038825,7]
[394813178,1763976644645,-150.0,0.00038825,7]
[394813179,1763976644655,-934.04,0.00038858,120]
[394813180,1763976644665,-150.0,0.00038868,15]
[394813181,1763976644674,-150.0,0.00038868,15]
[394813182,1763976644683,-150.0,0.00038868,15]
[394813183,1763976644693,-203.76538744,0.00038868,15]
[394813184,1763976644702,-150.0,0.00038868,15]
[394813185,1763976644712,-150.0,0.00038868,15]
[394813186,1763976644722,-1075.5729,0.00038888,30]
[394813187,1763976644731,-934.04,0.00038899,120]
[394813188,1763976644740,-150.0,0.0003892,7]
[394813189,1763976644749,-8178.56318842,0.00038936,2]
[394813190,1763976644759,-500.0,0.00038942,8]
[394813191,1763976644768,-206.26,0.00038942,8]
[394813192,1763976644777,-474.42232674,0.00038942,8]
[394813193,1763976644787,-500.0,0.00038942,8]
[394813194,1763976644796,-609.18613381,0.00038942,8]
[394813195,1763976644805,-508.71,0.00038942,8]
[394813196,1763976644814,-500.0,0.00038942,8]
[394813197,1763976644823,-500.0,0.00038942,8]
[394813198,1763976644832,-253.52,0.00038942,8]
[394813199,1763976644841,-220.98,0.00038942,8]
[394813200,1763976644850,-169.35,0.00038942,8]
[394813201,1763976644860,-572.64681991,0.00038942,8]
[394813202,1763976644869,-500.0,0.00038942,8]
[394813203,1763976644879,-500.0,0.00038942,8]
[394813204,1763976644888,-500.0,0.00038942,8]
[394813205,1763976644898,-500.0,0.00038942,8]
[394813206,1763976644907,-213.7,0.00038942,8]
[394813207,1763976644916,-167.94,0.00038942,8]
[394813208,1763976644925,-401.4,0.00038942,8]
[394813209,1763976644935,-265.65,0.00038942,8]
[394813210,1763976644944,-446.20760292,0.00038942,8]
[394813211,1763976644957,-470.44818259,0.00038942,8]
[394813212,1763976644966,-505.55,0.00038942,8]
[394813213,1763976644976,-500.0,0.00038942,8]
[394813214,1763976644985,-562.5039476,0.00038942,8]
[394813215,1763976644994,-610.86,0.00038942,8]
[394813216,1763976645003,-377.1,0.00038942,8]
[394813217,1763976645012,-500.0,0.00038942,8]
[394813218,1763976645022,-520.58253044,0.00038942,8]
[394813219,1763976645032,-500.0,0.00038942,8]
[394813220,1763976645041,-502.69350681,0.00038942,8]
[394813221,1763976645051,-506.37307044,0.00038942,8]
[394813222,1763976645062,-516.04581981,0.00038942,8]
[394813223,1763976645072,-500.0,0.00038942,8]
[394813224,1763976645082,-385.64,0.00038942,8]
[394813225,1763976645092,-580.64,0.00038942,8]
[394813226,1763976645102,-500.0,0.00038942,8]
[394813227,1763976645112,-500.0,0.00038942,8]
[394813228,1763976645122,-403.6,0.00038942,8]
[394813229,1763976645133,-500.0,0.00038942,8]
[394813230,1763976645143,-500.0,0.00038942,8]
[394813231,1763976645154,-500.0,0.00038942,8]
[394813232,1763976645164,-366.13,0.00038942,8]
[394813233,1763976645174,-500.0,0.00038942,8]
[394813234,1763976645183,-503.41834094,0.00038942,8]
[394813235,1763976645193,-503.97683212,0.00038942,8]
[394813236,1763976645203,-500.0,0.00038942,8]
[394813237,1763976645215,-500.0,0.00038942,8]
[394813238,1763976645224,-500.0,0.00038942,8]
[394813239,1763976645234,-215.73,0.00038942,8]
[394813240,1763976645244,-520.52000963,0.00038942,8]
[394813241,1763976645254,-500.0,0.00038942,8]
[394813242,1763976645264,-506.62540424,0.00038942,8]
[394813243,1763976645274,-500.0,0.00038942,8]
[394813244,1763976645284,-500.0,0.00038942,8]
[394813245,1763976645294,-500.0,0.00038942,8]
[394813246,1763976645303,-500.0,0.00038942,8]
[394813247,1763976645314,-500.0,0.00038942,8]
[394813248,1763976645323,-500.0,0.00038942,8]
[394813249,1763976645334,-500.0,0.00038942,8]
[394813250,1763976645343,-1060.06,0.00038942,8]
[394813251,1763976645353,-500.0,0.00038942,8]
[394813252,1763976645364,-171.37,0.00038942,8]
[394813253,1763976645374,-577.24,0.00038942,8]
[394813254,1763976645386,-500.0,0.00038942,8]
[394813255,1763976645397,-500.0,0.00038942,8]
[394813256,1763976645406,-500.0,0.00038942,8]
[394813257,1763976645417,-500.0,0.00038942,8]
[394813258,1763976645426,-500.0,0.00038942,8]
[394813259,1763976645438,-687.84,0.00038942,8]
[394813260,1763976645448,-500.0,0.00038942,8]
[394813261,1763976645462,-500.0,0.00038942,8]
[394813262,1763976645473,-500.0,0.00038942,8]
[394813263,1763976645483,-502.05506303,0.00038942,8]
[394813264,1763976645493,-439.58,0.00038942,8]
[394813265,1763976645503,-995.31,0.00038942,8]
[394813266,1763976645513,-500.0,0.00038942,8]
[394813267,1763976645523,-500.0,0.00038942,8]
[394813268,1763976645535,-503.20355607,0.00038942,8]
[394813269,1763976645545,-1551.68,0.00038942,8]
[394813270,1763976645555,-500.0,0.00038942,8]
[394813271,1763976645566,-196.14,0.00038942,8]
[394813272,1763976645577,-235.9,0.00038942,8]
[394813273,1763976645588,-500.0,0.00038942,8]
[394813274,1763976645600,-500.0,0.00038942,8]
[394813275,1763976645611,-500.0,0.00038942,2]
[394813276,1763976645621,-500.0,0.00038942,8]
[394813277,1763976645632,-353.7180178,0.00038942,8]
[394813278,1763976645643,-500.0,0.00038942,8]
[394813279,1763976645654,-500.0,0.00038942,8]
[394813280,1763976645666,-324.62410328,0.00038942,8]
[394813281,1763976645679,-500.0,0.00038942,8]
[394813282,1763976645691,-164.84,0.00038942,8]
[394813283,1763976645703,-500.0,0.00038942,8]
[394813284,1763976645724,-500.0,0.00038942,8]
[394813285,1763976645735,-500.0,0.00038942,8]
[394813286,1763976645747,-500.0,0.00038942,8]
[394813288,1763976645759,-502.03475481,0.00038942,8]
[394813289,1763976645771,-500.0,0.00038942,8]
[394813290,1763976645782,-500.0,0.00038942,8]
[394813291,1763976645794,-505.21522898,0.00038942,8]
[394813292,1763976645806,-500.0,0.00038942,8]
[394813293,1763976645817,-500.0,0.00038942,8]
[394813294,1763976645828,-500.0,0.00038942,8]
[394813295,1763976645839,-500.0,0.00038942,8]
[394813296,1763976645850,-481.95,0.00038942,8]
[394813298,1763976645860,-500.0,0.00038942,8]
[394813299,1763976645870,-500.0,0.00038942,8]
[394813301,1763976645880,-349.19,0.00038942,8]
[394813302,1763976645891,-568.25912338,0.00038942,8]
[394813304,1763976645902,-500.0,0.00038942,2]
[394813305,1763976645912,-500.0,0.00038942,8]
[394813306,1763976645922,-500.0,0.00038942,8]
[394813307,1763976645933,-500.0,0.00038942,8]
[394813308,1763976645945,-515.68,0.00038942,8]
[394813309,1763976645965,-500.0,0.00038942,8]
[394813310,1763976645975,-350.71957891,0.00038942,8]
[394813311,1763976645986,-500.0,0.00038942,8]
[394813312,1763976645996,-934.04,0.00038943,120]
[394813313,1763976646006,-310.29,0.00038962,2]
[394813314,1763976646015,-150.0,0.00038975,7]
[394813315,1763976646026,-934.04,0.00038991,120]
[394813316,1763976646035,-500.0,0.00039,30]
[394813317,1763976646045,-2614.33980064,0.00039,7]
[394813318,1763976646054,-1823.11314664,0.00039,2]
[394813319,1763976646064,-277.55631167,0.00039,120]
[394813320,1763976646074,-200.0,0.00039005,15]
[394813321,1763976646083,-150.0,0.00039005,15]
[394813322,1763976646092,-150.0,0.00039005,15]
[394813323,1763976646101,-150.0,0.00039005,15]
[394813324,1763976646111,-150.0,0.00039005,15]
[394813325,1763976646121,-153.63,0.00039017,2]
[394813326,1763976646131,-500.0,0.00039041,7]
[394813327,1763976646141,-500.0,0.00039042,8]
[394813328,1763976646151,-822.85,0.00039042,30]
[394813329,1763976646161,-500.0,0.00039042,8]
[394813330,1763976646171,-500.0,0.00039042,8]
[394813331,1763976646181,-500.0,0.00039042,8]
[394813332,1763976646191,-500.0,0.00039042,8]
[394813333,1763976646201,-500.0,0.00039042,8]
[394813334,1763976646213,-188.33,0.00039043,8]
[394813335,1763976646224,-542.5450071,0.00039043,8]
[394813336,1763976646235,-934.04,0.00039043,120]
[394813337,1763976646246,-168.0,0.00039055,2]
[394813338,1763976646256,-150.0,0.00039067,7]
[394813339,1763976646266,-934.04,0.000391,120]
[394813340,1763976646275,-225.68647856,0.00039103,15]
[394813341,1763976646285,-161.0,0.00039142,15]
[394813342,1763976646295,-250.0,0.00039142,15]
[394813343,1763976646306,-198.05767948,0.00039142,15]
[394813344,1763976646317,-214.0,0.00039142,15]
[394813345,1763976646327,-934.04,0.00039162,120]
[394813346,1763976646337,-150.0,0.00039174,7]
[394813347,1763976646347,-150.0,0.00039174,7]
[394813348,1763976646357,-172.0,0.00039207,7]
[394813349,1763976646367,-622.90732,0.0003921,2]
[394813350,1763976646376,-500.0,0.00039216,8]
[394813351,1763976646386,-500.0,0.00039216,8]
[394813352,1763976646396,-354.56,0.00039216,8]
[394813353,1763976646406,-216.98,0.00039216,8]
[394813354,1763976646416,-227.34,0.00039216,8]
[394813355,1763976646425,-183.71,0.00039216,8]
[394813356,1763976646435,-500.0,0.00039216,8]
[394813358,1763976646445,-500.0,0.00039216,8]
[394813360,1763976646456,-500.0,0.00039216,8]
[394813361,1763976646470,-287.43565827,0.00039216,8]
[394813362,1763976646479,-500.0,0.00039216,8]
[394813363,1763976646489,-580.64,0.00039216,8]
[394813364,1763976646498,-500.0,0.00039216,8]
[394813365,1763976646519,-500.0,0.00039216,8]
[394813366,1763976646541,-500.0,0.00039216,8]
[394813367,1763976646563,-430.85,0.00039216,8]
[394813368,1763976646587,-500.0,0.00039216,8]
[394813369,1763976646611,-500.0,0.00039216,8]
[394813370,1763976646633,-291.77,0.00039216,8]
[394813371,1763976646656,-286.25,0.00039216,8]
[394813372,1763976646679,-500.0,0.00039216,8]
[394813373,1763976646701,-352.61,0.00039216,8]
[394813374,1763976646725,-500.0,0.00039216,8]
[394813375,1763976646734,-156.91641879,0.00039216,8]
[394813376,1763976646744,-255.89,0.00039216,8]
[394813377,1763976646754,-500.0,0.00039216,8]
[394813378,1763976646763,-1060.06,0.00039216,8]
[394813379,1763976646774,-577.24,0.00039216,8]
[394813380,1763976646784,-500.0,0.00039216,8]
[394813381,1763976646794,-500.0,0.00039216,8]
[394813382,1763976646804,-503.93,0.00039216,8]
[394813383,1763976646813,-500.0,0.00039216,8]
[394813384,1763976646823,-500.0,0.00039216,8]
[394813385,1763976646832,-687.84,0.00039216,8]
[394813386,1763976646841,-500.0,0.00039216,8]
[394813387,1763976646850,-995.31,0.00039216,8]
[394813388,1763976646859,-500.0,0.00039216,8]
[394813389,1763976646869,-500.0,0.00039216,8]
[394813390,1763976646878,-1551.68,0.00039216,8]
[394813391,1763976646887,-500.0,0.00039216,8]
[394813392,1763976646896,-500.0,0.00039216,8]
[394813393,1763976646906,-194.55,0.00039216,8]
[394813394,1763976646915,-500.0,0.00039216,8]
[394813395,1763976646925,-500.0,0.00039216,8]
[394813396,1763976646934,-479.96343751,0.00039216,8]
[394813397,1763976646944,-500.0,0.00039216,8]
[394813398,1763976646955,-500.0,0.00039216,8]
[394813399,1763976646967,-540.99,0.00039216,8]
[394813400,1763976646976,-500.0,0.00039216,8]
[394813401,1763976646986,-500.0,0.00039216,8]
[394813402,1763976646995,-500.0,0.00039216,8]
[394813403,1763976647006,-500.0,0.00039216,8]
[394813404,1763976647016,-500.0,0.00039216,2]
[394813405,1763976647026,-500.0,0.00039216,8]
[394813406,1763976647037,-271.3608691,0.00039216,8]
[394813407,1763976647046,-509.58653195,0.00039216,8]
[394813408,1763976647056,-500.0,0.00039216,8]
[394813409,1763976647065,-934.04,0.00039233,120]
[394813410,1763976647076,-166.76,0.00039242,2]
[394813411,1763976647085,-168.0,0.00039272,7]
[394813412,1763976647094,-150.0,0.00039274,7]
[394813413,1763976647244,-150.0,0.00039302,7]
[394813414,1763976647278,-8178.56318842,0.00039303,2]
[394813415,1763976647288,-934.04,0.00039312,120]
[394813416,1763976647298,-822.85,0.00039316,30]
[394813417,1763976647311,-388.22,0.00039316,8]
[394813418,1763976647332,-500.0,0.00039316,8]
[394813419,1763976647355,-500.0,0.00039316,8]
[394813420,1763976647379,-500.0,0.00039316,8]
[394813421,1763976647402,-500.0,0.00039316,8]
[394813422,1763976647425,-364.18485085,0.00039329,2]